[Event "FIDE WCCC U10 2018"]
[Site "Santiago de Compostela"]
[Date "2018.11.07"]
[Round "3"]
[White "Nitsche, Nikolai"]
[Black "Kadam Om Manish"]
[Result "1/2-1/2"]
[ECO "B53"]
[WhiteElo "1645"]
[BlackElo "2025"]
[Annotator "NA RC"]
[PlyCount "53"]
[EventDate "2018.11.04"]
[EventType "swiss"]
[EventCountry "ESP"]
[SourceTitle "playchess.com"]
[Source "ChessBase"]
[SourceQuality "1"]
[TimeControl "40/5400+30:1800+30"]

{[%evp 9,50,39,32,13,37,14,0,5,12,12,36,26,47,48,131,24,40,21,31,16,39,40,47,39,41,43,44,34,174,175,178,191,180,185,188,175,203,111,110,94,88,84,92]} 1. e4 {[%emt 0:00:00]} c5 {[%emt 0:00:07]} 2. Nf3 {[%emt 0:00:00]} d6 {[%emt 0:00:04]} 3. d4 {[%emt 0:00:00]} cxd4 {[%emt 0:00:06]} 4. Qxd4 {[%emt 0:00:03]} a6 {[%emt 0:00:05]} 5. c4 {[%emt 0:00:27]} Nc6 {[%emt 0:00:07]} 6. Qe3 {[%emt 0:00:18]} g6 {[%emt 0:00:06] B53: Sicilian: 2...d6: Lines with Qxd4} (6... Bg4 7. Nd4 g6 8. Nc3 Bg7 9. Nxc6 bxc6 10. h3 Be6 11. Be2 Nf6 12. O-O O-O 13. f4 Qa5 14. Bd2 {1-0 (50) Karjakin,S (2763)-Nepomniachtchi,I (2751) Moscow 2018}) 7. Nc3 {[%emt 0:00:19]} Bg4 {[%emt 0:02:40]} 8. Be2 {[%emt 0:01:46]} Bg7 {[%emt 0:00:36] LiveBook: 3 Games} 9. O-O {[%emt 0:01:07]} Rc8 {[%emt 0:01:31]} 10. Rd1 $146 {[%emt 0:00:37]} ({Predecessor:} 10. b3 b5 11. Rb1 bxc4 12. bxc4 Bxf3 13. Bxf3 Ne5 14. Nd5 {½-½ (37) Ni,H (2607)-Timofeev,A (2657) Taiyuan 2006}) 10... Bxf3 {[%emt 0:02:01]} 11. Bxf3 {[%emt 0:00:26]} Nf6 {[%emt 0:00:32] [#]} (11... Ne5 $14) 12. Rb1 {[%emt 0:00:42]} (12. e5 $1 $16 {[%cal Re5f6][%mdl 512]} Nxe5 13. Bxb7) 12... Nd7 {[%emt 0:04:03]} 13. b3 {[%emt 0:01:16]} O-O {[%emt 0:16:59]} 14. Bb2 {[%emt 0:02:09]} Nc5 {[%emt 0:06:09]} 15. Nd5 {[%emt 0:02:05]} e5 {[%emt 0:04:16]} 16. Rbc1 {[%emt 0:23:02]} Ne6 {[%emt 0:12:29]} 17. g3 {[%emt 0:14:30]} Ncd4 {[%emt 0:04:40]} 18. Bg2 {[%emt 0:00:19]} Qa5 {[%emt 0:08:57]} (18... b5 $14) 19. Ne7+ {[%emt 0:00:40]} Kh8 {[%emt 0:00:02]} 20. Nxc8 {[%emt 0:00:10]} Rxc8 {[%emt 0:00:01]} 21. a3 {[%emt 0:01:27]} Qb6 {[%emt 0:01:18]} 22. b4 {[%emt 0:01:11]} a5 {[%emt 0:06:44]} 23. Bxd4 {[%emt 0:09:30]} Nxd4 {[%emt 0:00:50]} 24. b5 {[%emt 0:01:13]} Qc5 {[%emt 0:03:16]} 25. Rf1 b6 $16 26. Kh1 Ne6 27. Rcd1 1/2-1/2

[Event "FIDE WCCC U10 2018"]
[Site "Santiago de Compostela"]
[Date "2018.11.07"]
[Round "3"]
[White "Azjargal Erdenebat"]
[Black "Hagner, Bennet"]
[Result "1-0"]
[ECO "A58"]
[WhiteElo "1633"]
[BlackElo "1912"]
[Annotator "NA RC"]
[PlyCount "131"]
[EventDate "2018.11.04"]
[EventType "swiss"]
[EventCountry "ESP"]
[SourceTitle "playchess.com"]
[Source "ChessBase"]
[SourceQuality "1"]
[TimeControl "40/5400+30:1800+30"]

{[%evp 9,131,36,72,45,67,42,55,43,55,57,54,49,64,41,63,16,39,-18,-10,-39,0,-22,-7,-16,0,-33,73,-55,-74,-93,-10,-43,0,1,0,0,-5,-27,-6,-47,-44,-184,32767,32767,-62,-75,-57,-70,32767,-65,32767,-246,-220,-333,42,32767,32767,0,32767,32767,32767,60,71,32767,32767,32767,32767,88,100,77,32767,0,46,25,55,15,14,0,53,39,28,0,62,61,57,49,60,57,56,7,8,32767,32767,0,8,8,8,8,8,8,236,0,0,0,0,0,0,0,0,0,0,0,0,0,0,0,353,420,197,349,234,207,275,217]} 1. d4 {[%emt 0:00:00]} Nf6 {[%emt 0:00:00]} 2. c4 {[%emt 0:00:00]} c5 {[%emt 0:00:00]} 3. d5 {[%emt 0:01:17]} b5 {[%emt 0:00:10]} 4. cxb5 {[%emt 0:00:39]} a6 {[%emt 0:00:06]} 5. bxa6 {[%emt 0:01:53]} g6 {[%emt 0:00:09]} 6. Nc3 {[%emt 0:01:11]} Bxa6 {[%emt 0:00:06]} 7. g3 {[%emt 0:01:21]} d6 {[%emt 0:01:03]} 8. Bg2 {[%emt 0:00:20]} Bg7 {[%emt 0:02:03]} 9. Nf3 {[%emt 0:00:45]} Nbd7 {[%emt 0:01:40]} 10. O-O {[%emt 0:01:13]} O-O {[%emt 0:02:03]} 11. Re1 {[%emt 0:03:37]} Ng4 {[%emt 0:03:57] LiveBook: 6 Partien} 12. h3 {[%emt 0:02:47]} Nge5 {[%emt 0:00:11]} 13. Nxe5 {[%emt 0:03:12] A58: Benko/Volga Gambit: Lines with 5 bxa6} Nxe5 {[%emt 0:00:15]} 14. Qc2 {[%emt 0:11:08]} (14. f4 Nc4 15. Qc2 Qa5 16. e4 Bd4+ 17. Kh2 Rfb8 18. Rb1 Rb6 19. Bf1 Na3 20. bxa3 Rxb1 21. Qxb1 Qxc3 {0-1 (34) Monroy Carrizo,J (2146)-Zambrana,O (2481) Santa Cruz 2010}) 14... Qa5 {[%emt 0:05:40]} 15. Bg5 $146 {[%emt 0:15:55]} ({Predecessor:} 15. b3 Nc4 16. bxc4 Bxc3 17. Bh6 Bxe1 18. Bxf8 Rxf8 {0-1 (18) Antonov,P (1932)-Losev,A (2154) Perm 2010}) 15... Ra7 {[%emt 0:02:10]} 16. Rac1 {[%emt 0:05:05]} Rc8 {[%emt 0:11:37]} 17. Bd2 {[%emt 0:06:32]} Rac7 {[%emt 0:12:30]} (17... Nc4 $15 {keeps the upper hand.}) 18. f4 {[%emt 0:01:58]} ({White should play} 18. Nd1 $14 Qb6 19. Bc3) 18... Nc4 {[%emt 0:01:18]} 19. e4 Qb4 {[%emt 0:08:17]} (19... Rb8 $17 20. b3 Nxd2 21. Qxd2 c4) 20. Bf1 {[%emt 0:10:09]} Rb8 {[%emt 0:10:52]} 21. Bxc4 {[%emt 0:05:40]} Qxc4 {[%emt 0:03:22]} 22. b3 {[%emt 0:02:12]} Qd4+ {[%emt 0:02:39]} 23. Be3 {[%emt 0:00:59]} Qb4 {[%emt 0:00:21]} 24. Bd2 {[%emt 0:06:11]} c4 {[%emt 0:01:54]} 25. Na4 {[%emt 0:01:21]} (25. Nb1 $1 $15 Qb7 26. b4) 25... c3 {[%emt 0:11:56]} 26. Bxc3 {[%emt 0:01:28]} Bxc3 {[%emt 0:00:15]} 27. Nxc3 {[%emt 0:00:47]} Rbc8 {[%emt 0:00:36]} 28. Re3 {[%emt 0:01:02]} Qd4 {[%emt 0:00:15]} 29. Qf2 {[%emt 0:00:31]} Bd3 {[%emt 0:01:22]} 30. Rd1 $2 {[%emt 0:01:03]} (30. Rf3 $15 Qxf2+ 31. Kxf2 Rxc3 32. Rxc3 Rxc3 33. Ke1 Rc1+ 34. Kd2 Bxe4 35. Re3 Rc2+ 36. Kd1) 30... Rxc3 {[%emt 0:02:27]} 31. Rexd3 {[%emt 0:00:11]} Qxe4 $2 {[%emt 0:00:53]} (31... Qxd3 $19 32. Rxd3 Rxd3) 32. Rxc3 {[%emt 0:00:23]} Rxc3 {[%emt 0:00:06]} 33. Re1 {[%emt 0:00:41]} Qxd5 {[%emt 0:00:53]} 34. Rxe7 {[%emt 0:00:40]} Qd3 {[%emt 0:01:40]} 35. Re2 $1 {[%emt 0:01:48]} Rc1+ {[%emt 0:00:59]} 36. Kh2 {[%emt 0:00:54]} d5 {[%emt 0:02:22]} 37. Rd2 {[%emt 0:01:41]} Qb1 {[%emt 0:03:15]} 38. Qg2 {[%emt 0:00:33]} Rc5 {[%emt 0:02:11]} 39. Rb2 {[%emt 0:01:07]} Qa1 {[%emt 0:01:35]} 40. Rd2 {[%emt 0:00:00]} d4 {[%emt 0:00:00]} 41. Qa8+ {[%emt 0:08:08]} Kg7 {[%emt 0:04:05]} 42. Qd8 {[%emt 0:00:01]} Rc1 {[%emt 0:05:01]} 43. Qd5 {[%emt 0:02:56]} Qc3 {[%emt 0:01:21]} 44. Qe5+ {[%emt 0:01:16]} Kg8 {[%emt 0:00:50]} 45. Qe2 {[%emt 0:00:48]} d3 {[%emt 0:02:11]} (45... Qc6 $11 46. Qg2 Qc3) 46. Qxd3 {[%emt 0:01:30]} Qxd3 {[%emt 0:00:25]} 47. Rxd3 {[%emt 0:00:04]} Rc2+ {[%emt 0:00:06]} 48. Kg1 {[%emt 0:00:20]} Rxa2 {[%emt 0:00:05]} 49. b4 {[%emt 0:01:24]} Rb2 {[%emt 0:00:08]} 50. Rd8+ {[%emt 0:00:23]} Kg7 {[%emt 0:00:07]} 51. Rb8 {[%emt 0:01:07]} h5 {[%emt 0:02:04]} 52. b5 {[%emt 0:00:27]} h4 {[%emt 0:04:46]} 53. gxh4 {[%emt 0:02:33]} Rb4 {[%emt 0:01:34]} 54. f5 {[%emt 0:01:33]} Rxh4 $2 {[%emt 0:01:35]} (54... gxf5 $11 {and Black is okay.} 55. h5 Rh4) 55. Kg2 $2 {[%emt 0:01:05]} (55. fxg6 $18 f6 56. Kg2) 55... gxf5 {[%emt 0:01:49]} 56. b6 {[%emt 0:00:26]} Rb4 {[%emt 0:01:14]} 57. b7 {[%emt 0:00:22]} Rb3 {[%emt 0:00:34]} 58. h4 {[%emt 0:01:41]} f4 {[%emt 0:01:23]} 59. h5 {[%emt 0:00:24]} f6 {[%emt 0:00:11]} 60. h6+ {[%emt 0:00:19]} Kh7 {[%emt 0:00:05]} 61. Kf2 {[%emt 0:00:34]} f5 {[%emt 0:00:21]} 62. Kg2 {[%emt 0:00:38]} f3+ $2 {[%emt 0:00:58] [#]} (62... Rg3+ $11 {and Black is okay.} 63. Kh1 Rh3+ 64. Kg1 Rg3+ 65. Kf1 Rb3) 63. Kg3 $1 {[%emt 0:00:19]} f4+ $2 {[%emt 0:00:56]} (63... f2+ $11 64. Kxf2 f4) 64. Kf2 {[%emt 0:00:06]} Rb2+ $1 {[%emt 0:00:12]} 65. Kxf3 {[%emt 0:00:05]} Rb4 {[%emt 0:00:07]} 66. Kg4 $18 {[%emt 0:00:13]} 1-0

[Event "FIDE WCCC U10 2018"]
[Site "Santiago de Compostela"]
[Date "2018.11.07"]
[Round "3"]
[White "Sloan, Jed"]
[Black "Sosa Costa, Leonardo"]
[Result "0-1"]
[ECO "B52"]
[WhiteElo "1556"]
[BlackElo "1945"]
[Annotator "NA RC"]
[PlyCount "102"]
[EventDate "2018.11.04"]
[EventType "swiss"]
[EventCountry "ESP"]
[SourceTitle "playchess.com"]
[Source "ChessBase"]
[SourceQuality "1"]
[TimeControl "40/5400+30:1800+30"]

{[%evp 8,102,38,15,29,25,17,21,36,24,24,17,21,25,20,17,41,34,40,39,48,45,41,40,48,50,55,43,62,7,39,46,44,23,4,-32,-34,-33,-28,-42,-16,-138,-34,-49,-43,-46,-34,-23,57,57,61,57,56,52,58,0,0,-23,-25,32767,32767,32767,32767,-62,-71,-66,-89,-175,-205,-227,-241,-297,-278,-297,-417,-389,32767,-510,-651,-1057,32767,32767,32767,-4802,32767,32767,-29983,-29984,32767,-6091,-29988,-29989,-29990,-29992,-29992,-29992,-29991]} 1. e4 {[%emt 0:00:00]} c5 {[%emt 0:00:00]} 2. Nf3 d6 3. Bb5+ {[%emt 0:00:03]} Bd7 {[%emt 0:00:12]} 4. Bxd7+ {[%emt 0:00:23]} Qxd7 {[%emt 0:00:12]} 5. c4 {[%emt 0:00:26]} Nf6 {[%emt 0:05:34]} 6. Nc3 {[%emt 0:00:36]} Nc6 {[%emt 0:01:19]} 7. d4 {[%emt 0:00:32]} cxd4 {[%emt 0:00:21]} 8. Nxd4 {[%emt 0:00:13]} g6 {[%emt 0:00:59]} 9. h3 {[%emt 0:00:40]} Bg7 {[%emt 0:01:10]} 10. Be3 {[%emt 0:00:36]} O-O {[%emt 0:02:04]} 11. O-O {[%emt 0:00:26]} Nxd4 {[%emt 0:04:38] B52: Sicilian: Moscow Variation with 3...Bd7} (11... a6 12. a4 e6 13. Rc1 Rac8 14. b3 Rfd8 15. Re1 {½-½ (15) Naiditsch,A (2711)-Li,C (2721) Deizisau 2015}) 12. Bxd4 {[%emt 0:01:06]} Qc6 {[%emt 0:04:09] LiveBook: 5 Games} 13. Qd3 {[%emt 0:02:03]} Nd7 {[%emt 0:01:51]} 14. Bxg7 $146 {[%emt 0:00:48]} ({Predecessor:} 14. Nd5 Rfe8 15. Bxg7 Kxg7 16. b3 Nf6 17. a4 Rac8 {½-½ (17) Spasov,V (2499)-Kozhuharov,S (2424) Kozloduy 2018}) 14... Kxg7 {[%emt 0:00:22]} 15. Qd4+ {[%emt 0:01:15]} f6 {[%emt 0:06:35]} 16. Nd5 {[%emt 0:03:21]} Rfe8 {[%emt 0:01:07]} 17. Rac1 {[%emt 0:08:47]} a5 {[%emt 0:03:33]} 18. f4 {[%emt 0:03:48]} a4 {[%emt 0:07:01]} 19. f5 {[%emt 0:01:40]} Rab8 {[%emt 0:14:51]} 20. Rfd1 {[%emt 0:15:24]} Qc5 {[%emt 0:02:45]} 21. Nf4 {[%emt 0:04:17]} Qxd4+ {[%emt 0:01:16]} 22. Rxd4 {[%emt 0:00:16]} Nc5 {[%emt 0:00:56]} 23. Rc3 {[%emt 0:01:11]} Kf7 {[%emt 0:04:36]} 24. Rg3 {[%emt 0:05:31] [#]} (24. b4 $11 axb3 25. axb3) 24... Rg8 {[%emt 0:04:33]} (24... b5 $1 $17 25. b3 axb3 26. axb3 bxc4 27. Rxc4 Rxb3 28. Rxb3 Nxb3) 25. Nd3 {[%emt 0:04:57]} Nxd3 {[%emt 0:02:41]} 26. Rgxd3 {[%emt 0:00:05]} b5 {[%emt 0:04:26]} 27. Rd2 {[%emt 0:03:31]} Rgc8 {[%emt 0:04:00]} (27... b4 $11) 28. fxg6+ {[%emt 0:01:49]} hxg6 {[%emt 0:00:12]} 29. cxb5 {[%emt 0:00:20]} Rxb5 {[%emt 0:05:32]} 30. Rxa4 {[%emt 0:01:05]} Ke6 {[%emt 0:00:22]} 31. Ra7 {[%emt 0:03:39]} (31. Kf2 $14) 31... Rc4 {[%emt 0:01:52]} 32. Re2 {[%emt 0:02:01]} Re5 {[%emt 0:00:47]} 33. Kf2 {[%emt 0:02:28]} Rcxe4 {[%emt 0:00:08]} 34. Rxe4 {[%emt 0:00:06]} Rxe4 {[%emt 0:00:04]} 35. Kf3 {[%emt 0:00:54]} d5 {[%emt 0:03:00]} 36. a3 {[%emt 0:04:06]} Re1 {[%emt 0:00:43]} 37. Ra8 {[%emt 0:03:18] [#]} (37. Kf2 $17 Ra1 38. Kf3) 37... d4 $1 {[%emt 0:01:46]} 38. Rd8 {[%emt 0:00:41] [#]} Ke5 $1 {[%emt 0:00:33]} 39. b4 {[%emt 0:00:25]} Re3+ {[%emt 0:00:16]} 40. Kf2 {[%emt 0:00:00]} Rxa3 {[%emt 0:00:00]} 41. b5 {[%emt 0:01:12]} Rb3 {[%emt 0:00:47]} 42. Rb8 {[%emt 0:00:16]} Ke4 {[%emt 0:01:31]} 43. b6 {[%emt 0:03:45]} Rb2+ {[%emt 0:00:46]} 44. Kg3 {[%emt 0:00:19]} Ke3 {[%emt 0:00:59]} 45. Kh2 {[%emt 0:05:03]} d3 {[%emt 0:01:11]} 46. Re8 {[%emt 0:00:10]} e5 {[%emt 0:00:27]} 47. Rd8 {[%emt 0:04:38]} Rxb6 {[%emt 0:00:14]} 48. g4 {[%emt 0:02:37]} d2 {[%emt 0:00:41]} 49. g5 {[%emt 0:00:42]} fxg5 {[%emt 0:00:21]} 50. Rd5 {[%emt 0:01:09]} e4 {[%emt 0:00:37]} 51. Kg2 {[%emt 0:02:36]} Ke2 {[%emt 0:00:16]} 0-1

[Event "FIDE WCCC U10 2018"]
[Site "Santiago de Compostela"]
[Date "2018.11.07"]
[Round "3"]
[White "Clarkson, George"]
[Black "Lee, Jayden"]
[Result "1-0"]
[ECO "E73"]
[WhiteElo "1552"]
[BlackElo "1830"]
[Annotator "NA RC"]
[PlyCount "137"]
[EventDate "2018.11.04"]
[EventType "swiss"]
[EventCountry "ESP"]
[SourceTitle "playchess.com"]
[Source "ChessBase"]
[SourceQuality "1"]
[TimeControl "40/5400+30:1800+30"]

{[%evp 13,132,23,32767,32767,52,27,43,34,34,26,34,23,45,27,22,21,57,31,34,0,0,-4,3,-20,-16,0,0,0,0,0,0,0,0,0,137,157,143,155,151,165,289,123,127,57,32767,45,32767,32767,58,62,32767,0,0,32767,349,355,366,416,920,-344,-433,-353,517,644,1721,198,335,0,0,0,0,0,126,0,213,10,59,0,179,194,201,187,202,0,891,1127,32767,32767,1019,32767,0,0,927,1937,1647,4951,1680,2943,5916,29975,12845,29985,12846,29981,29990,29986,29993,29994,29994,29995,29995,29993,29996,29996,29996,29995,29995,29996,29998,29999,29999]} 1. d4 {[%emt 0:00:00]} Nf6 {[%emt 0:00:00]} 2. c4 {[%emt 0:00:00]} g6 {[%emt 0:00:00]} 3. Nc3 {[%emt 0:00:00]} Bg7 {[%emt 0:00:00]} 4. e4 {[%emt 0:00:00]} d6 {[%emt 0:00:00]} 5. Be2 {[%emt 0:00:00]} O-O {[%emt 0:00:00]} 6. h4 {[%emt 0:00:12]} c5 {[%emt 0:02:08]} 7. d5 {[%emt 0:00:07]} h5 {[%emt 0:02:29] E73: King's Indian: Averbakh Variation without 6...c5} (7... b5 8. cxb5 a6 9. bxa6 Qa5 10. Bd2 Bxa6 11. h5 Nbd7 12. hxg6 hxg6 13. Bxa6 Qxa6 14. Nge2 Rfb8 15. Rb1 Rb4 {1-0 (60) Jobava,B (2727)-Radjabov,T (2734) Wijk aan Zee 2015 CBM 165 [Gormally,D]}) 8. Nh3 {[%emt 0:00:49]} Nbd7 {[%emt 0:05:43]} 9. Bf4 {[%emt 0:03:51]} Qa5 $146 {[%emt 0:31:51]} ({Predecessor:} 9... Nh7 10. Ng5 Ne5 11. f3 Qa5 12. Qd2 Qb4 13. Bxe5 Bxe5 14. f4 Bg7 15. f5 gxf5 {1-0 (38) Mont Reynaud,J-Haroun,S Szeged 1994}) 10. O-O {[%emt 0:04:34]} Ne5 {[%emt 0:02:50]} 11. Bxe5 {[%emt 0:04:07]} dxe5 {[%emt 0:00:27]} 12. Ng5 {[%emt 0:00:21]} Rd8 {[%emt 0:13:35]} 13. Qb3 {[%emt 0:09:04]} Bd7 {[%emt 0:01:22]} 14. a3 {[%emt 0:18:36]} a6 {[%emt 0:02:15]} 15. Rfb1 {[%emt 0:00:38]} Rdb8 {[%emt 0:00:54]} 16. Qc2 {[%emt 0:00:12]} b5 {[%emt 0:00:36]} 17. b4 {[%emt 0:03:19]} Qc7 {[%emt 0:00:25]} 18. Qa2 {[%emt 0:03:31]} cxb4 {[%emt 0:05:03]} 19. axb4 {[%emt 0:00:08]} bxc4 {[%emt 0:00:12]} 20. b5 {[%emt 0:16:03]} axb5 {[%emt 0:01:32]} 21. Qxa8 {[%emt 0:00:08]} Rxa8 {[%emt 0:00:23]} 22. Rxa8+ {[%emt 0:00:03]} Bf8 {[%emt 0:00:32]} 23. Nxb5 {[%emt 0:03:50]} Qc5 {[%emt 0:05:23]} (23... Qb7 $11 {keeps the balance.} 24. Ra4 {[#]} c3 $1 {[%mdl 512]} 25. Nxc3 Qxb1+ 26. Nxb1 Bxa4) 24. Na3 {[%emt 0:09:23]} c3 {[%emt 0:00:52]} 25. Rbb8 {[%emt 0:00:08]} Ne8 {[%emt 0:01:04]} 26. Nc2 {[%emt 0:02:43]} Qc7 {[%emt 0:02:52]} (26... Bh6 $142 27. Nf3 (27. Rxe8+ Bxe8 28. Rxe8+ Kg7 $16) 27... f6) 27. Rd8 {[%emt 0:01:11]} ({Don't do} 27. Rxe8 $6 Bxe8 28. Rxe8 Kg7 $16) ({White should try} 27. g3 $18) 27... Bh6 {[%emt 0:11:42]} 28. Nf3 {[%emt 0:02:30]} Kg7 {[%emt 0:01:15]} 29. Bd3 {[%emt 0:04:29]} Nf6 {[%emt 0:02:11]} 30. Ng5 {[%emt 0:00:53]} Qb7 {[%emt 0:02:25]} 31. Rdb8 {[%emt 0:00:08]} Qc7 $1 $11 {[%emt 0:00:11] und Schwarz muss sich keine Sorgen machen.} 32. Kh1 {[%emt 0:02:19]} (32. Rh8 $14) 32... Qc5 {[%emt 0:02:14]} 33. Kg1 {[%emt 0:00:04]} Ba4 $2 {[%emt 0:00:52]} ({Ein No Go ist} 33... Bxg5 $6 34. hxg5 Ne8 35. Rxe8 $16) 34. Rxa4 {[%emt 0:02:15]} ({Less strong is} 34. Rc8 Qb6 $16) 34... Bxg5 {[%emt 0:00:03]} 35. hxg5 {[%emt 0:04:10]} ({Viel schwächer ist} 35. Rb5 Qd6 $18) 35... Ng4 {[%emt 0:00:04] [#]} 36. Nd4 $4 {[%emt 0:01:26] [#]} (36. Ne3 $1 $18) 36... c2 $1 {[%emt 0:03:55]} ({Avoid the trap} 36... exd4 $2 37. Raa8 $18) 37. Bxc2 {[%emt 0:02:45] [#]} Nf6 $4 {[%emt 0:00:02]} ({Avoid the trap} 37... exd4 $2 38. Raa8 $18) (37... Qc3 $1 $19 {[%cal Rc3e1]} 38. Rb1 exd4) 38. gxf6+ {[%emt 0:00:24]} exf6 {[%emt 0:00:12]} 39. Rb7 $2 {[%emt 0:03:40]} (39. d6 Qxd6 40. Rbb4 exd4 41. Rxd4) 39... exd4 {[%emt 0:00:09]} 40. Bb3 $2 {[%emt 0:00:00]} (40. Ra2 $18) 40... Qc1+ {[%emt 0:00:00]} 41. Kh2 {[%emt 0:00:35]} Qf4+ {[%emt 0:00:26]} 42. Kg1 {[%emt 0:00:56]} Qxe4 {[%emt 0:00:41]} 43. Rbb4 $2 {[%emt 0:05:45]} ({Better is} 43. Ra1 $16) 43... Qe1+ $11 {[%emt 0:03:25]} 44. Kh2 {[%emt 0:00:09]} Qe5+ {[%emt 0:00:28]} (44... h4 $1 $11) 45. Kg1 {[%emt 0:00:09]} (45. g3 $14 Qe1 46. Kg2 (46. Rxd4 Qxf2+ 47. Kh3 Qf3 $11) 46... Qe4+ 47. Kf1 Qd3+ 48. Ke1 Qe4+ 49. Kd2) 45... d3 $2 {[%emt 0:00:31]} 46. Rd4 $2 {[%emt 0:00:35]} Qe1+ $11 {[%emt 0:00:52]} 47. Kh2 {[%emt 0:00:05]} Qe5+ {[%emt 0:00:30]} 48. Kg1 {[%emt 0:00:30]} (48. g3 $18 h4 49. Kg2 (49. Rxd3 Qe2 $11) 49... hxg3 50. Rxd3) 48... d2 $2 {[%emt 0:01:01]} 49. d6 {[%emt 0:00:20]} Qe1+ {[%emt 0:00:08]} 50. Kh2 {[%emt 0:00:05]} Qe5+ {[%emt 0:00:19]} 51. Kg1 {[%emt 0:00:06]} Qe1+ {[%emt 0:01:01]} 52. Kh2 {[%emt 0:00:05]} Qe5+ {[%emt 0:00:44] [#]} 53. g3 $1 {[%emt 0:00:18]} h4 {[%emt 0:01:28]} 54. Rxd2 {[%emt 0:05:41]} hxg3+ {[%emt 0:00:14]} 55. fxg3 {[%emt 0:00:09]} Qe8 {[%emt 0:01:39]} 56. d7 {[%emt 0:00:50]} Qd8 {[%emt 0:00:07] [#]} 57. Ra8 $1 {[%emt 0:01:31]} Qxa8 {[%emt 0:00:23]} 58. d8=Q Qf3 {[%emt 0:00:16]} 59. Qd5 {[%emt 0:00:44]} Qe3 {[%emt 0:01:06]} 60. Qxf7+ {[%emt 0:00:48]} Kh6 {[%emt 0:00:06]} 61. Qf8+ {[%emt 0:00:24]} Kh5 {[%emt 0:00:28]} 62. Qh8+ {[%emt 0:00:48]} Kg4 {[%emt 0:00:09]} 63. Qh4+ {[%emt 0:00:12]} Kf5 {[%emt 0:00:18]} 64. Rd5+ {[%emt 0:00:29]} Ke6 {[%emt 0:00:10]} 65. Rd3+ {[%emt 0:00:17]} Kf5 {[%emt 0:00:08]} 66. Rxe3 {[%emt 0:00:27]} g5 {[%emt 0:00:04]} 67. Qh7+ {[%emt 0:00:08]} Kg4 {[%emt 0:00:14]} 68. Qh4+ Kf5 69. Bc2# {Kg4 Qh3#} 1-0